fUSD/lending_fUSD_20241209
["ID","MTS","AMOUNT","RATE_DAILY","PERIOD"]
[344734798,1733759498363,-500.0,0.00027,30]
[344734799,1733759498387,-1000.0,0.00027,30]
[344734800,1733759498410,-1000.0,0.00027,30]
[344734801,1733759498436,-1000.0,0.00027,30]
[344734802,1733759498461,-1000.0,0.00027,30]
[344734803,1733759498486,-1000.0,0.00027,30]
[344734804,1733759498513,-1000.0,0.00027,30]
[344734805,1733759498539,-700.0,0.00027,30]
[344734806,1733759498565,-700.0,0.00027,30]
[344734807,1733759498590,-500.0,0.00027,30]
[344734808,1733759498616,-700.0,0.00027,30]
[344734809,1733759498641,-1000.0,0.00027,30]
[344734810,1733759498665,-700.0,0.00027,30]
[344734811,1733759498691,-500.0,0.00027,30]
[344734812,1733759498715,-1000.0,0.00027,30]
[344734813,1733759498739,-159.97143866,0.00027,30]
[344734814,1733759498762,-810.0,0.00027,30]
[344734815,1733759498786,-700.0,0.00027,30]
[344734816,1733759498811,-500.0,0.00027,30]
[344734817,1733759498835,-1000.0,0.00027,30]
[344734818,1733759498860,-969.01551873,0.00027,30]
[344734819,1733759498884,-500.0,0.00027,30]
[344734820,1733759498907,-700.0,0.00027,30]
[344734821,1733759498930,-297.19012242,0.00027,30]
[344734822,1733759498954,-985.30517558,0.00027,30]
[344734823,1733759498978,-1000.0,0.00027,30]
[344734824,1733759499002,-162.8325884,0.00027,30]
[344734825,1733759499029,-700.0,0.00027,30]
[344734826,1733759499064,-207.86137997,0.00027,30]
[344734827,1733759499089,-1000.0,0.00027,30]
[344734828,1733759499114,-500.7,0.00027,30]
[344734829,1733759499138,-159.06896745,0.00027,30]
[344734830,1733759499161,-500.0,0.00027,30]
[344734831,1733759499185,-700.0,0.00027,30]
[344734832,1733759499208,-1000.0,0.00027,30]
[344734833,1733759499233,-1000.0,0.00027,30]
[344734834,1733759499257,-328.58276844,0.00027,30]
[344734835,1733759499281,-1000.0,0.00027,30]
[344734836,1733759499304,-700.0,0.00027,30]
[344734837,1733759499330,-700.0,0.00027,30]
[344734838,1733759499354,-700.0,0.00027,30]
[344734839,1733759499377,-500.0,0.00027,30]
[344734840,1733759499401,-700.0,0.00027,30]
[344734841,1733759499425,-997.20964168,0.00027,30]
[344734842,1733759499452,-500.0,0.00027,30]
[344734843,1733759499476,-700.0,0.00027,30]
[344734844,1733759499500,-700.0,0.00027,30]
[344734845,1733759499525,-500.0,0.00027,30]
[344734846,1733759499549,-159.29646985,0.00027,30]
[344734847,1733759499575,-500.0,0.00027,30]
[344734848,1733759499599,-500.0,0.00027,30]
[344734849,1733759499766,-687.34753946,0.00027,30]
[344734850,1733759499791,-500.0,0.00027,30]
[344734851,1733759499818,-500.0,0.00027,30]
[344734852,1733759499843,-500.0,0.00027,30]
[344734853,1733759499867,-546.77729366,0.00027,30]
[344734854,1733759499890,-500.0,0.00027,30]
[344734855,1733759499914,-500.0,0.00027,30]
[344734856,1733759499938,-500.0,0.00027,30]
[344734857,1733759499961,-500.0,0.00027,30]
[344734858,1733759499985,-500.0,0.00027,30]
[344734859,1733759500009,-500.0,0.00027,30]
[344734860,1733759500032,-475.24133958,0.00027,30]
[344734861,1733759500055,-500.47137461,0.00027,30]
[344734862,1733759500081,-500.0,0.00027,30]
[344734863,1733759500105,-500.0,0.00027,30]
[344734864,1733759500131,-156.73740761,0.00027,30]
[344734865,1733759500155,-700.0,0.00027,30]
[344734866,1733759500178,-500.0,0.00027,30]
[344734867,1733759500201,-938.19696458,0.00027,30]
[344734868,1733759500224,-187.20805384,0.00027,30]
[344734869,1733759500248,-500.0,0.00027,30]
[344734870,1733759500272,-700.0,0.00027,30]
[344734871,1733759500296,-500.0,0.00027,30]
[344734872,1733759500323,-700.0,0.00027,30]
[344734873,1733759500347,-500.0,0.00027,30]
[344734874,1733759500371,-500.0,0.00027,30]
[344734875,1733759500395,-500.0,0.00027,30]
[344734876,1733759500419,-706.5710406,0.00027,30]
[344734877,1733759500445,-700.0,0.00027,30]
[344734878,1733759500470,-500.0,0.00027,30]
[344734879,1733759500496,-500.0,0.00027,30]
[344734880,1733759500521,-700.0,0.00027,30]
[344734881,1733759500546,-500.0,0.00027,30]
[344734882,1733759500571,-500.0,0.00027,30]
[344734883,1733759500596,-1000.0,0.00027,30]
[344734884,1733759500620,-700.0,0.00027,30]
[344734885,1733759500644,-500.0,0.00027,30]
[344734886,1733759500668,-2400.0,0.00027,30]
[344734887,1733759500693,-500.0,0.00027,30]
[344734888,1733759500717,-1000.0,0.00027,30]
[344734889,1733759500740,-500.0,0.00027,30]
[344734890,1733759500767,-700.0,0.00027,30]
[344734891,1733759500791,-500.0,0.00027,30]
[344734892,1733759500818,-2400.0,0.00027,30]
[344734893,1733759500842,-953.82500204,0.00027,30]
[344734894,1733759500866,-1000.0,0.00027,30]
[344734895,1733759500889,-500.0,0.00027,30]
[344734896,1733759500912,-500.0,0.00027,30]
[344734897,1733759500935,-700.0,0.00027,30]
[344734898,1733759500958,-2400.0,0.00027,30]
[344734899,1733759500981,-500.0,0.00027,30]
[344734900,1733759501005,-500.0,0.00027,30]
[344734901,1733759501028,-700.0,0.00027,30]
[344734902,1733759501052,-500.0,0.00027,30]
[344734903,1733759501080,-2400.0,0.00027,30]
[344734904,1733759501105,-500.0,0.00027,30]
[344734905,1733759501136,-500.0,0.00027,30]
[344734906,1733759501160,-700.0,0.00027,30]
[344734907,1733759501184,-500.0,0.00027,30]
[344734908,1733759501207,-2400.0,0.00027,30]
[344734909,1733759501232,-500.0,0.00027,30]
[344734910,1733759501256,-500.0,0.00027,30]
[344734911,1733759501280,-500.0,0.00027,30]
[344734912,1733759501304,-500.0,0.00027,30]
[344734913,1733759501329,-700.0,0.00027,30]
[344734914,1733759501354,-2400.0,0.00027,30]
[344734915,1733759501378,-1000.0,0.00027,30]
[344734916,1733759501402,-473.21871603,0.00027,30]
[344734917,1733759501426,-700.0,0.00027,30]
[344734918,1733759501453,-2400.0,0.00027,30]
[344734919,1733759501476,-500.0,0.00027,30]
[344734920,1733759501501,-1000.0,0.00027,30]
[344734921,1733759501525,-700.0,0.00027,30]
[344734922,1733759501551,-2400.0,0.00027,30]
[344734923,1733759501577,-500.0,0.00027,30]
[344734924,1733759501601,-1000.0,0.00027,30]
[344734925,1733759501626,-700.0,0.00027,30]
[344734926,1733759501651,-2400.0,0.00027,30]
[344734927,1733759501675,-500.0,0.00027,30]
[344734928,1733759501698,-1000.0,0.00027,30]
[344734929,1733759501722,-2400.0,0.00027,30]
[344734930,1733759501746,-1000.0,0.00027,30]
[344734931,1733759501769,-500.0,0.00027,30]
[344734932,1733759501793,-2400.0,0.00027,30]
[344734933,1733759501818,-1000.0,0.00027,30]
[344734934,1733759501841,-2400.0,0.00027,30]
[344734935,1733759501872,-1000.0,0.00027,30]
[344734936,1733759501898,-2400.0,0.00027,30]
[344734937,1733759501922,-1000.0,0.00027,30]
[344734938,1733759501948,-2400.0,0.00027,30]
[344734939,1733759501972,-1000.0,0.00027,30]
[344734940,1733759501996,-1000.0,0.00027,30]
[344734941,1733759502020,-1000.0,0.00027,30]
[344734942,1733759502045,-150.0,0.00027014,120]
[344734943,1733759502071,-150.0,0.00027091,120]
[344734944,1733759502251,-150.0,0.00027116,120]
[344734945,1733759502280,-11943.99195488,0.0002736,120]
[344734946,1733759502307,-507.13,0.00027397,120]
[344734947,1733759502334,-507.13,0.00027397,120]
[344734948,1733759502359,-507.13,0.00027397,120]
[344734949,1733759502384,-507.13,0.00027397,120]
[344734950,1733759502409,-507.13,0.00027397,120]
[344734951,1733759502435,-507.13,0.00027397,120]
[344734952,1733759502464,-507.13,0.00027397,120]
[344734953,1733759502488,-507.13,0.00027397,120]
[344734954,1733759502514,-507.13,0.00027397,120]
[344734955,1733759502539,-507.13,0.00027397,120]
[344734956,1733759502565,-507.13,0.00027397,120]
[344734957,1733759502594,-507.13,0.00027397,120]
[344734958,1733759502621,-507.13,0.00027397,120]
[344734959,1733759502646,-507.13,0.00027397,120]
[344734960,1733759502671,-507.13,0.00027397,120]
[344734961,1733759502695,-507.13,0.00027397,120]
[344734962,1733759502720,-507.13,0.00027397,120]
[344734963,1733759502743,-507.13,0.00027397,120]
[344734964,1733759502766,-507.13,0.00027397,120]
[344734965,1733759502790,-507.13,0.00027397,120]
[344734966,1733759502819,-507.13,0.00027397,120]
[344734967,1733759502847,-507.13,0.00027397,120]
[344734968,1733759502871,-507.13,0.00027397,120]
[344734969,1733759502895,-507.19980471,0.00027397,120]
[344734970,1733759502920,-2100.0,0.00027397,30]
[344734971,1733759502943,-922.99529274,0.00027397,30]
[344734972,1733759502970,-2000.0,0.00027397,30]
[344734973,1733759502994,-2000.0,0.00027397,30]
[344734974,1733759503018,-2000.0,0.00027397,30]
[344734975,1733759503043,-2000.0,0.00027397,30]
[344734976,1733759503071,-2000.0,0.00027397,30]
[344734977,1733759503096,-2000.0,0.00027397,30]
[344734978,1733759503122,-2000.0,0.00027397,30]
[344734979,1733759503147,-2000.0,0.00027397,30]
[344734980,1733759503170,-2000.0,0.00027397,30]
[344734981,1733759503194,-2000.0,0.00027397,30]
[344734982,1733759503219,-2000.0,0.00027397,30]
[344734983,1733759503242,-2000.0,0.00027397,30]
[344734984,1733759503265,-243.36868139,0.00027397,30]
[344734985,1733759503292,-200.0,0.00027397,60]
[344734986,1733759503321,-2000.0,0.000274,120]
[344734987,1733759503351,-150.0,0.00027878,120]
[344734988,1733759503375,-4011.50467365,0.0002788,120]
[344734989,1733759503399,-390.33239627,0.000279,120]
[344734990,1733759503424,-150.0,0.00027948,120]
[344734991,1733759503451,-19016.75731193,0.00027998,120]
[344734992,1733759503475,-500.0,0.00027999,120]
[344734993,1733759503499,-2000.0,0.00027999,120]
[344734994,1733759503523,-500.0,0.00027999,120]
[344734995,1733759503547,-500.0,0.00027999,120]
[344734996,1733759503571,-200.0,0.00027999,120]
[344734997,1733759503595,-1000.95,0.00028,30]
[344734998,1733759503619,-451731.47782919,0.00028,30]
[344734999,1733759503643,-8000.0,0.00028,120]
[344735000,1733759503668,-212.0,0.00028,30]
[344735001,1733759503696,-201.0,0.00028,30]
[344735002,1733759503719,-201.0,0.00028,30]
[344735003,1733759503743,-200.0,0.00028,30]
[344735004,1733759503767,-201.0,0.00028,30]
[344735005,1733759503792,-5519.90458702,0.00028,60]
[344735006,1733759503820,-500.0,0.00028,30]
[344735007,1733759503844,-500.0,0.00028,120]
[344735008,1733759503869,-500.0,0.00028,120]
[344735009,1733759503892,-500.0,0.00028,30]
[344735010,1733759503916,-500.0,0.00028,120]
[344735011,1733759503940,-245.0413519,0.00028,120]
[344735012,1733759503964,-500.0,0.00028,30]
[344735013,1733759503989,-500.0,0.00028,120]
[344735014,1733759504013,-500.0,0.00028,30]
[344735015,1733759504037,-500.0,0.00028,120]
[344735016,1733759504074,-500.0,0.00028,120]
[344735017,1733759504099,-500.0,0.00028,30]
[344735018,1733759504124,-601.04943879,0.00028,120]
[344735019,1733759504149,-500.0,0.00028,30]
[344735020,1733759504177,-516.05684971,0.00028,30]
[344735021,1733759504203,-30000.0,0.00028,120]
[344735022,1733759504227,-15000.0,0.00028,30]
[344735023,1733759504253,-150.0,0.00028172,120]
[344735024,1733759504278,-150.0,0.00028225,120]
[344735025,1733759504303,-2279.31642898,0.00028297,120]
[344735026,1733759504334,-150.0,0.00028395,120]
[344735027,1733759504360,-150.0,0.00028398,120]
[344735028,1733759504386,-2000.0,0.000284,120]
[344735029,1733759504410,-30000.0,0.000285,120]
[344735030,1733759504437,-150.0,0.00028554,120]
[344735031,1733759504466,-150.0,0.00028584,120]
[344735032,1733759504500,-100000.0,0.00028726,30]
[344735033,1733759504527,-100000.0,0.00028726,31]
[344735034,1733759504555,-100000.0,0.00028726,32]
[344735035,1733759504589,-100000.0,0.00028726,33]
[344735036,1733759504617,-59364.76243307,0.00028726,34]
[344735041,1733759879122,765.47,9.364e-05,2]
[344735048,1733759934648,4560.2268136,0.0001,2]
[344735049,1733760429951,218.42,0.0002,120]
[344735050,1733760433036,1012.72374511,0.0002,120]
[344735051,1733760463631,1000.0,9e-05,2]
[344735062,1733760632653,-635.93342053,0.00010939,2]
[344735063,1733760632663,-199.0,0.00010965,2]
[344735064,1733760632672,-250.0,0.00010991,2]
[344735065,1733760632681,-150.0,0.00011032,2]
[344735066,1733760632690,-150.0,0.00011033,2]
[344735067,1733760632699,-175.02690478,0.00011039,2]
[344735068,1733760632711,-40.34309522,0.00011039,2]
[344735069,1733760632720,-200.0,0.00011126,2]
[344735070,1733760632729,-250.0,0.00011138,2]
[344735071,1733760632739,-59.65690478,0.00011168,2]
[344735072,1733760632756,-940.34309522,0.00011168,2]
[344735073,1733760632766,-1001.04,0.00011186,2]
[344735074,1733760632775,-98.61690478,0.00011212,2]
[344735075,1733760632787,-1530.45309522,0.00011212,2]
[344735076,1733760632800,-545.65,0.00011281,2]
[344735077,1733760632809,-988.02,0.00011361,2]
[344735078,1733760632819,-166.76,0.00011407,2]
[344735079,1733760632829,-5438.19,0.00011458,2]
[344735080,1733760632838,-150.99,0.00011507,2]
[344735081,1733760632848,-1933.23,0.00011507,2]
[344735082,1733760632857,-2000.0,0.00011627,2]
[344735083,1733760632868,-765.47,0.00011628,2]
[344735084,1733760632877,-166.19,0.00011628,2]
[344735085,1733760632887,-150.0,0.00011643,2]
[344735086,1733760632897,-435.34,0.00011644,2]
[344735087,1733760632906,-648.97,0.00011644,2]
[344735088,1733760632915,-435.34,0.00011644,2]
[344735089,1733760632924,-974.74,0.00011644,2]
[344735090,1733760632934,-435.34,0.00011644,2]
[344735091,1733760632943,-974.74,0.00011644,2]
[344735092,1733760632952,-974.74,0.00011644,2]
[344735093,1733760632961,-435.34,0.00011644,2]
[344735094,1733760632970,-434.64,0.00011644,2]
[344735096,1733760632979,-974.74,0.00011644,2]
[344735097,1733760632989,-974.74,0.00011644,2]
[344735098,1733760632998,-974.74,0.00011644,2]
[344735099,1733760633007,-974.74,0.00011644,2]
[344735100,1733760633017,-500.0,0.00011781,2]
[344735101,1733760633027,-417.292,0.0001188,2]
[344735102,1733760633037,-300.0,0.000119,4]
[344735103,1733760633049,-5000.73498539,0.00012,2]
[344735104,1733760633059,-600.0,0.00012,4]
[344735105,1733760633069,-2375.0,0.00012007,2]
[344735106,1733760633080,-2000.0,0.00012057,2]
[344735107,1733760633090,-1000.0,0.000121,4]
[344735108,1733760633100,-1300.0,0.000122,4]
[344735109,1733760633110,-428.04992712,0.00012274,2]
[344735110,1733760633119,-200.0,0.0001228,2]
[344735111,1733760633129,-1700.0,0.000123,4]
[344735112,1733760633139,-6062.302,0.00012366,2]
[344735113,1733760633148,-3000.0,0.0001237,2]
[344735114,1733760633158,-213.7485888,0.00012399,2]
[344735115,1733760633167,-213.74858879,0.00012399,2]
[344735116,1733760633177,-213.74858879,0.00012399,2]
[344735117,1733760633187,-213.74858879,0.00012399,2]
[344735118,1733760633196,-213.74858879,0.00012399,2]
[344735119,1733760633206,-213.74858879,0.00012399,2]
[344735120,1733760633215,-213.74858879,0.00012399,2]
[344735121,1733760633225,-213.74858879,0.00012399,2]
[344735122,1733760633235,-213.74858879,0.00012399,2]
[344735123,1733760633255,-5000.0,0.000124,2]
[344735124,1733760633265,-213.74858879,0.000124,2]
[344735125,1733760633274,-300.0,0.000124,4]
[344735126,1733760633284,-1198.08455187,0.000124,2]
[344735127,1733760633296,-166.50451805,0.000124,2]
[344735128,1733760633305,-876.30801674,0.000124,2]
[344735129,1733760633314,-167.28816114,0.00012465,2]
[344735130,1733760633324,-61259.64568967,0.00012466,2]
[344735131,1733760633336,-832.19394295,0.00012466,2]
[344735132,1733760633347,-281.70750365,0.00012466,2]
[344735133,1733760633370,-556.26670477,0.00012466,2]
[344735134,1733760633389,-935.7973475,0.00012466,2]
[344735135,1733760633401,-311.37028415,0.00012466,2]
[344735136,1733760633422,-1126.4420004,0.00012466,2]
[344735137,1733760633433,-3898.4339375,0.00012466,2]
[344735138,1733760633444,-29341.1,0.00012466,2]
[344735143,1733760638409,-996.54570923,0.00012466,2]
[344735144,1733760638462,-11532.49688018,0.00012466,2]
[344735145,1733760638472,-2830.0,0.00012466,2]
[344735146,1733760638482,-974.74,0.00012466,2]
[344735147,1733760638492,-974.74,0.00012466,2]
[344735148,1733760638501,-974.74,0.00012466,2]
[344735149,1733760638511,-974.74,0.00012466,2]
[344735150,1733760638520,-974.74,0.00012466,2]
[344735151,1733760638530,-974.74,0.00012466,2]
[344735152,1733760638539,-974.74,0.00012466,2]
[344735153,1733760638552,-974.74,0.00012466,2]
[344735154,1733760638561,-974.74,0.00012466,2]
[344735155,1733760638571,-974.74,0.00012466,2]
[344735156,1733760638580,-974.74,0.00012466,2]
[344735157,1733760638591,-974.74,0.00012466,2]
[344735158,1733760638600,-974.74,0.00012466,2]
[344735159,1733760638609,-974.74,0.00012466,2]
[344735160,1733760638618,-974.74,0.00012466,2]
[344735161,1733760638628,-974.74,0.00012466,2]
[344735162,1733760638637,-2000.0,0.00012487,2]
[344735163,1733760638646,-637.31696008,0.00012499,2]
[344735164,1733760638656,-500.0,0.00012499,2]
[344735165,1733760638666,-500.0,0.00012499,2]
[344735166,1733760638675,-324.3462884,0.00012499,2]
[344735167,1733760638685,-643.25787423,0.00012499,2]
[344735168,1733760638695,-500.0,0.00012499,2]
[344735169,1733760638704,-2000.0,0.00012499,2]
[344735170,1733760638714,-569.96539058,0.00012499,2]
[344735171,1733760638724,-464.12496438,0.00012499,2]
[344735173,1733760638733,-617.03790051,0.00012499,2]
[344735175,1733760638742,-500.0,0.00012499,2]
[344735178,1733760638751,-430.6324739,0.00012499,2]
[344735181,1733760638761,-2468.415,0.00012499,2]
[344735183,1733760638770,-500.0,0.00012499,2]
[344735186,1733760638779,-637.17197238,0.00012499,2]
[344735188,1733760638792,-292.62135004,0.00012499,2]
[344735190,1733760638804,-500.0,0.00012499,2]
[344735192,1733760638819,-500.0,0.00012499,2]
[344735194,1733760638830,-500.0,0.00012499,2]
[344735196,1733760638841,-500.0,0.00012499,2]
[344735198,1733760638851,-500.0,0.00012499,2]
[344735200,1733760638860,-500.0,0.00012499,2]
[344735202,1733760638870,-500.0,0.00012499,2]
[344735204,1733760638879,-500.0,0.00012499,2]
[344735206,1733760638889,-500.0,0.00012499,2]
[344735208,1733760638899,-500.0,0.00012499,2]
[344735210,1733760638908,-500.0,0.00012499,2]
[344735212,1733760638919,-500.0,0.00012499,2]
[344735214,1733760638928,-500.0,0.00012499,2]
[344735216,1733760638937,-464.12505287,0.00012499,2]
[344735218,1733760638947,-500.0,0.00012499,2]
[344735220,1733760638957,-500.0,0.00012499,2]
[344735222,1733760638966,-1000.0,0.00012499,2]
[344735224,1733760638976,-500.0,0.00012499,2]
[344735226,1733760638985,-1000.0,0.00012499,2]
[344735228,1733760638995,-886.0,0.00012499,2]
[344735230,1733760639005,-250000.0,0.000125,2]
[344735232,1733760639014,-597361.84652241,0.000125,2]
[344735234,1733760639023,-23441.58055613,0.000125,2]
[344735236,1733760639032,-20000.0,0.000125,2]
[344735249,1733760639195,-327376.42493179,0.000125,2]
[344735250,1733760639207,-489.7800001,0.000125,2]
[344735251,1733760639219,-3826.63396688,0.000125,2]
[344735255,1733760641920,-4806.01193799,0.000125,2]
[344735256,1733760642027,-149290.37716019,0.000125,2]
[344735280,1733760643339,-1996.23677394,0.000125,2]
[344735282,1733760643392,-3508.67549732,0.000125,2]
[344735283,1733760643404,-2993.28521467,0.000125,2]
[344735284,1733760643454,-13953.88199866,0.000125,2]
[344735285,1733760643464,-931.13278959,0.000125,2]
[344735286,1733760643476,-7762.6,0.000125,2]
[344735287,1733760643488,-1106.41509197,0.000125,2]
[344735288,1733760643507,-974.74,0.00011644,2]
[344735289,1733760643517,-3032.24730222,0.000125,2]
[344735290,1733760643528,-7163.8608419,0.000125,2]
[344735291,1733760643607,-300.0,0.000125,2]
[344735292,1733760643618,-5391.732,0.000125,2]
[344735293,1733760643661,-415.90340895,0.000125,2]
[344735294,1733760643673,-8087.0735218,0.000125,2]
[344735295,1733760643684,-45278.89048955,0.000125,2]
[344735296,1733760643696,-612.35964928,0.000125,2]
[344735297,1733760643720,-823.45974905,0.000125,2]
[344735298,1733760643730,-2443.58595753,0.000125,2]
[344735299,1733760643771,-22491.7547035,0.000125,2]
[344735300,1733760643827,-515.91347407,0.000125,2]
[344735534,1733760646297,-744.0,0.000125,2]
[344735536,1733760646307,-5365.00000003,0.000125,2]
[344735645,1733760647595,-15188.93035268,0.000125,2]
[344735647,1733760647606,-301838.94087057,0.000125,2]
[344735649,1733760647618,-23342.228829,0.000125,2]
[344735652,1733760647633,-2013.38719984,0.000125,2]
[344735654,1733760647644,-2395.39998,0.000125,2]
[344735657,1733760647668,-3821.48972716,0.000125,2]
[344735660,1733760647679,-441.64,0.000125,2]
[344735663,1733760647697,-1199.680675,0.000125,2]
[344736369,1733760820124,704.48,9.855e-05,2]
[344736374,1733760950676,46101.65783328,0.0001001,2]
[344736376,1733761013056,212630.09109207,0.0001001,2]
[344736377,1733761212393,198.24,9.129e-05,2]
[344736416,1733761379831,13159.9647375,0.0001,2]
[344736425,1733761478658,418.8,0.0002,120]
[344736426,1733761480739,10000.0,0.0002,120]
[344736428,1733761592344,1964.69446158,9e-05,2]
[344736431,1733761627662,507230.65699242,9.87e-05,2]
[344736439,1733761785876,150.78485939,0.0001,2]
[344736464,1733761831603,-1101.18,0.00011167,2]
[344736465,1733761831612,-175.544615,0.00011204,2]
[344736466,1733761831624,-43.455385,0.00011204,2]
[344736467,1733761831633,-150.0,0.00011299,2]
[344736468,1733761831643,-150.0,0.00011392,2]
[344736469,1733761831653,-215.37,0.00011393,2]
[344736470,1733761831663,-250.0,0.0001146,2]
[344736471,1733761831672,-192.644615,0.00011479,2]
[344736472,1733761831694,-123.3065825,0.00011479,2]
[344736473,1733761831703,-1000.0,0.00011532,2]
[344736474,1733761831717,-2000.0,0.00011653,2]
[344736475,1733761831727,-168.12,0.00011702,2]
[344736476,1733761831737,-563.48,0.00011704,2]
[344736477,1733761831747,-413.562,0.0001188,2]
[344736478,1733761831757,-300.0,0.00011886,2]
[344736479,1733761831767,-999.99,0.00011887,2]
[344736480,1733761831776,-299.99,0.00011887,2]
[344736481,1733761831786,-150.99,0.00011887,2]
[344736482,1733761831796,-150.0,0.00011899,2]
[344736483,1733761831806,-350.33990914,0.00011899,2]
[344736484,1733761831815,-500.0,0.00011899,2]
[344736485,1733761831824,-500.0,0.00011899,2]
[344736486,1733761831833,-178.59810301,0.00011899,2]
[344736487,1733761831843,-212606.90293909,0.000119,2]
[344736489,1733761831855,-11494.3518212,0.000119,2]
[344736490,1733761831868,-776.67801697,0.000119,2]
[344736491,1733761831887,-1349.84479405,0.000119,2]
[344736492,1733761831927,-2409.25511216,0.000119,2]
[344736494,1733761832021,-3840.0,0.000119,2]
[344736495,1733761832032,-14977.5,0.000119,2]
[344736496,1733761832151,-494.30163018,0.000119,2]
[344736497,1733761832163,-18429.25678337,0.000119,2]
[344736500,1733761837458,-1559531.31779308,0.000119,2]
[344736501,1733761837469,-315.95119749,0.0001194,2]
[344736502,1733761837478,-500.1,0.00012,2]
[344736503,1733761837488,-500.0,0.00012,2]
[344736504,1733761837499,-500.0,0.00012,2]
[344736505,1733761837509,-500.0,0.00012,2]
[344736506,1733761837520,-2000.0,0.00012084,2]
[344736507,1733761837531,-704.48,0.00012118,2]
[344736508,1733761837541,-492623.346553,0.0001224,2]
[344736509,1733761837559,-428.04992712,0.00012249,2]
[344736510,1733761837577,-498.33204619,0.00012313,2]
[344736511,1733761837597,-240.0,0.0001236,2]
[344736512,1733761837618,-3000.0,0.0001237,2]
[344736513,1733761837637,-917.88305984,0.00012399,2]
[344736514,1733761837658,-917.8830598,0.00012399,2]
[344736515,1733761837677,-917.8830598,0.00012399,2]
[344736516,1733761837698,-917.8830598,0.00012399,2]
[344736517,1733761837718,-917.8830598,0.00012399,2]
[344736518,1733761837739,-917.8830598,0.00012399,2]
[344736519,1733761837753,-917.8830598,0.00012399,2]
[344736520,1733761837762,-917.8830598,0.00012399,2]
[344736521,1733761837772,-917.8830598,0.00012399,2]
[344736522,1733761837782,-3671.7841,0.000124,2]
[344736523,1733761837791,-3854.6846,0.000124,2]
[344736524,1733761837801,-315.95119749,0.000124,2]
[344736525,1733761837811,-917.8830598,0.000124,2]
[344736526,1733761837820,-2476.70383693,0.00012497,3]
[344736528,1733761837830,-27924.55811482,0.00012498,2]
[344736530,1733761837840,-253.57660646,0.00012499,2]
[344736532,1733761837849,-2189.079,0.00012499,2]
[344736534,1733761837859,-163.491,0.00012499,2]
[344736536,1733761837870,-500.0,0.00012499,2]
[344736538,1733761837880,-7839.0216127,0.00012499,2]
[344736540,1733761837889,-20000.0,0.000125,2]
[344736542,1733761837899,-578.0,0.000125,2]
[344736544,1733761837908,-617626.31144667,0.000125,2]
[344736546,1733761837918,-35080.97253051,0.000125,2]
[344736547,1733761837928,-22885811.37688509,0.000125,2]
[344736548,1733761837938,-11482.07,0.000125,2]
[344736550,1733761837949,-1116.02,0.000125,2]
[344736551,1733761837959,-200.0,0.000125,2]
[344736552,1733761837969,-200.0,0.000125,2]
[344736553,1733761837978,-14000.0,0.000125,2]